Cogmind - Beta 11.1 @@@ ROGUE MODE // 2022.04.28 @ 15:19:50 Player: Azken Zutik Result: Destroyed by D-53 Grenadier with Mini Grenade Launcher Performance ------------- Evolutions (0) 0 Regions Visited (2) 400 Robots Destroyed (48) 240 Value Destroyed (961) 961 Prototype IDs (2) 40 Alien Tech Used (0) 0 Bonus (215) 215 TOTAL SCORE: 1856 Bonus ------- High Alert Combat Kills 215 Cogmind --------- Core Integrity 0/250 Matter 235/300 Energy 89/100 System Corruption 4% Temperature Cool (0) Movement Treading (240) Ox1 Location -10/Mines Parts ------- > --- POWER (1) -------- (None) > --- PROPULSION (2) --- Light Treads Light Treads > --- UTILITY (2) ------ High-capacity Storage Unit Seismic Detector > --- WEAPON (2) ------- Grenade Launcher Datajack > --- INVENTORY (20) --- Ion Engine Light Ion Engine Light Treads Light Treads Light Treads Light Treads Light Treads Light Treads Compact Wheel Medium Matter Pod (10) Assault Rifle Light Assault Rifle Light Assault Rifle Light Assault Rifle Light Assault Rifle Light Assault Rifle Hammer Peak State ------------ > --- POWER ------------ Light Ion Engine > --- PROPULSION ------- Light Treads Light Treads > --- UTILITY ---------- High-capacity Storage Unit Improved Terrain Scanner > --- WEAPON ----------- Light Assault Rifle Light Assault Rifle > --- INVENTORY -------- Light Ion Engine Light Treads Light Treads Light Treads Light Treads Light Treads Compact Wheel EM Pulse Gun Grenade Launcher Datajack [Rating: 10] Favorites ----------- Power Light Ion Engine Engine Light Ion Engine Propulsion Light Treads Treads Light Treads Leg Aluminum Leg Utility High-capacity Storage Unit Device Improved Terrain Scanner Storage High-capacity Storage Unit Protection Light Armor Plating Weapon Assault Rifle Energy Gun EM Pulse Gun Ballistic Gun Assault Rifle Launcher Grenade Launcher Special Melee Weapon Datajack Build | -11 -10 -10 ------- Run | Scr Mat Min Slots Evolved . | . . . Power . | . . . Propulsion . | . . . Utility . | . . . Weapon . | . . . Parts Attached 26 | 4 15 7 Power 2 | . 2 . Engine 2 | . 2 . Core . | . . . Reactor . | . . . Propulsion 5 | 2 1 2 Treads 5 | 2 1 2 Leg . | . . . Wheel . | . . . Hover . | . . . Flight . | . . . Utility 4 | 1 2 1 Device 2 | 1 . 1 Storage 1 | . 1 . Processor . | . . . Hackware . | . . . Protection 1 | . 1 . Artifact . | . . . Weapon 15 | 1 10 4 Energy Gun . | . . . Energy Cannon . | . . . Ballistic Gun 8 | 1 6 1 Ballistic Cannon . | . . . Launcher 6 | . 4 2 Special Weapon . | . . . Impact Weapon . | . . . Slashing Weapon . | . . . Piercing Weapon . | . . . Special Melee Weapon 1 | . . 1 Unidentified Prototypes . | . . . Parts Lost 5 | . . 5 Power 1 | . . 1 Propulsion 2 | . . 2 Utility 1 | . . 1 Weapon 1 | . . 1 Highest Loss Streak 4 | . . 4 To Critical Strikes . | . . . Average Slot Usage (%) 99 | . 99 99 Engine 13 | . 13 14 Treads 28 | . 28 28 Device 7 | . 6 9 Storage 14 | . 14 14 Protection 6 | . 7 3 Ballistic Gun 23 | . 23 24 Launcher 4 | . 4 3 Naked Turns . | . . . Heaviest Build 51 | 12 51 51 Greatest Support 40 | 40 40 40 Greatest Overweight (x) 1 | . 1 1 Average Overweight (x) . | . . 1 Largest Inventory Capacity 20 | 8 20 20 Average Capacity 16 | 8 15 20 Most Carried 20 | 6 20 20 Average Carried 14 | 2 12 19 Final Capacity 20 | 8 20 20 Final Carried 20 | 2 20 17 Class Distribution -------------------- 100% | Mutant Dominant Class ---------------- Mutant | -10/Materials Mutant | -10/Mines Resources | -11 -10 -10 ----------- Run | Scr Mat Min Matter Collected 1235 | 246 757 232 Remotely . | . . . Salvage Created 932 | 125 645 162 Parts 77 | 7 56 14 Haulers Intercepted 2 | . 2 . Recyclers Shooed 2 | . 1 1 Parts Field Recycled . | . . . Retrieved Matter . | . . . Parts Self-Destructed . | . . . Prevented . | . . . Kills | -11 -10 -10 ------- Run | Scr Mat Min Combat Hostiles Destroyed 29 | . 22 7 Guns 6 | . 1 5 AOE 23 | . 21 2 Classes Destroyed 9 | 2 7 . Worker 5 | . 5 . Builder 2 | . 2 . Tunneler 3 | 2 1 . Hauler 2 | . 2 . Recycler 3 | 1 2 . Operator 1 | . 1 . Watcher 3 | . 3 . Swarmer 9 | . 6 3 Grunt 20 | . 16 4 Best Kill Streak 10 | 2 10 3 Combat Bots Only 4 | . 4 3 Max Kills in Single Turn 2 | 1 2 1 Gunslinging . | . . . Exploded 2 | . 2 1 Melee . | . . . Uniques/NPCs Destroyed . | . . . Combat | -11 -10 -10 -------- Run | Scr Mat Min Damage Taken 1191 | . 344 847 Core 257 | . 87 170 Absorbed by Shields . | . . . Regen/Repaired (Parts) 43 | . 43 . Core Remaining (%) 100 | 100 . . Volleys Fired 102 | 6 73 23 Largest 2 | 2 2 2 Hottest 60 | 60 40 40 Shots Fired 148 | 12 95 41 Gun 90 | 12 42 36 Cannon . | . . . Launcher 58 | . 53 5 Special . | . . . Kinetic 84 | 6 42 36 Thermal . | . . . Explosive 58 | . 53 5 Electromagnetic 6 | 6 . . Robot Hit Streak 8 | 6 7 8 Robot Miss Streak 3 | 1 3 2 Penetration Max . | . . . Secondary Targets . | . . . Shots Hit Robots 81 | 8 44 29 Core Hits 80 | 4 60 16 Critical Kills . | . . . Critical Parts Destroyed . | . . . Critical Strikes . | . . . Melee Attacks 1 | . . 1 Impact . | . . . Slashing . | . . . Piercing . | . . . Sneak Attacks . | . . . Combat Hostiles . | . . . Follow-up Attacks . | . . . Damage Inflicted 3259 | 89 2660 510 Guns 688 | 89 290 309 Cannons . | . . . Explosions 2565 | . 2364 201 Melee . | . . . Ramming 6 | . 6 . Kinetic 620 | 21 290 309 Thermal . | . . . Explosive 2565 | . 2364 201 Electromagnetic 68 | 68 . . Impact . | . . . Slashing . | . . . Piercing . | . . . Highest Corruption 4 | . 4 4 Average Corruption 2 | . 2 4 Corruption Purged . | . . . Corruption Blocked . | . . . Effects 40 | . 22 18 Message Errors 7 | . 5 2 Matter Fused 10 | . 4 6 Heat Flow Errors 4 | . 2 2 Energy Discharges 7 | . 4 3 Data Loss (minor) 6 | . 4 2 Data Loss (major) 2 | . 1 1 Misfires 3 | . 2 1 Weapon Failures 1 | . . 1 Overload Shots . | . . . Overflow Damage 82 | . 82 . Projectiles . | . . . Explosions 82 | . 82 . Melee . | . . . Knockbacks . | . . . Impact . | . . . Kinetic . | . . . Secondary . | . . . Self-Inflicted Damage 74 | . 24 50 Shots 4 | . 1 3 Rammed 1 | . 1 . Targets Rammed 1 | . 1 . Kicked . | . . . Crushed . | . . . Highest Temperature 252 | 20 252 240 Average Temperature 60 | 15 64 66 Received Heat Transfer 252 | . 144 108 Siege Activations . | . . . Robots Corrupted . | . . . Combat Hostiles . | . . . Parts Fried . | . . . Impact Corruptions . | . . . Robots Melted . | . . . Combat Hostiles . | . . . Parts Melted . | . . . Heat Transferred . | . . . Parts Sabotaged . | . . . Parts Stolen . | . . . Parts Stripped . | . . . Power Chain Reactions . | . . . Missiles Intercepted . | . . . Alert | -11 -10 -10 ------- Run | Scr Mat Min Peak Influence 961 | 15 961 457 Initial 313 | . 9 313 Average 616 | 8 720 381 Maximum Alert Level 3 | . 3 2 Low Security (%) 6 | 100 5 . Level 1 16 | . 4 50 Level 2 25 | . 16 49 Level 3 52 | . 72 . Level 4 . | . . . Level 5 . | . . . High Security . | . . . Max Security . | . . . Squads Dispatched 8 | . 8 . Investigation 5 | . 5 . Extermination . | . . . Reinforcement 3 | . 3 . Assault . | . . . Garrison . | . . . Intercept . | . . . Searches Triggered . | . . . Construction Impeded . | . . . Haulers Reinforced . | . . . Active Scanning Responses . | . . . Cargo Convoy Interrupts . | . . . Stealth | -11 -10 -10 --------- Run | Scr Mat Min Distress Signals 2 | . 2 . Communications Jammed . | . . . Distress Signals . | . . . Times Spotted 37 | . 25 12 Peak Tracking Total 4 | . 3 4 Tactical Retreats 1 | . . 1 Traps | -11 -10 -10 ------- Run | Scr Mat Min Traps Triggered 5 | . 5 . Indirectly . | . . . Trap Hack Attempts . | . . . Triggered . | . . . Disarmed . | . . . Reprogrammed . | . . . Reused . | . . . Traps Extracted . | . . . Installed . | . . . Triggered . | . . . Machines | -11 -10 -10 ---------- Run | Scr Mat Min Machines Disabled 3 | . 1 2 Max in Single Turn 1 | . 1 1 Machines Sabotaged . | . . . Garrisons Compromised . | . . . Overloaded Fab Kills . | . . . Hacking | -11 -10 -10 --------- Run | Scr Mat Min Machines Accessed 6 | . 6 . Terminals 3 | . 3 . Fabricators . | . . . Repair Stations 1 | . 1 . Recycling Units 2 | . 2 . Scanalyzers . | . . . Garrison Access . | . . . Total Hacks 13 | . 13 . Successful 6 | . 6 . Failed 6 | . 6 . Catastrophic 1 | . 1 . Database Lockouts 1 | . 1 . Manual 10 | . 10 . Terminals 7 | . 7 . Fabricators . | . . . Repair Stations 3 | . 3 . Recycling Units 3 | . 3 . Scanalyzers . | . . . Garrison Access . | . . . Terminal Hacks 3 | . 3 . Robot Analysis 1 | . 1 . Prototype ID Bank 1 | . 1 . Branch Access Points 1 | . 1 . Fabricator Hacks . | . . . Repair Station Hacks 2 | . 2 . Scan Component 1 | . 1 . Repair 1 | . 1 . Recycling Unit Hacks . | . . . Scanalyzer . | . . . Garrison Access Hacks . | . . . Unauthorized Hacks 1 | . 1 . Terminals . | . . . Fabricators . | . . . Repair Stations . | . . . Recycling Units 1 | . 1 . Tunnel 1 | . 1 . Scanalyzers . | . . . Garrison Access . | . . . Data Cores Recovered . | . . . Used . | . . . Hacking Detections 5 | . 5 . Full Trace Events 4 | . 4 . Feedback Events 1 | . 1 . Corruption 1 | . 1 . Feedback Blocked . | . . . Robot Schematics Acquired . | . . . Robots Built . | . . . Authchips . | . . . Time . | . . . Total Robot Build Rating . | . . . Part Schematics Acquired . | . . . Parts Built . | . . . Authchips . | . . . Time . | . . . Total Part Build Rating . | . . . Parts Repaired 1 | . 1 . Time 26 | . 26 . Parts Recycled . | . . . Recycled Matter . | . . . Retrieved Matter . | . . . Retrieved Components . | . . . Parts Scanalyzed . | . . . Part Schematics Acquired . | . . . Parts Damaged . | . . . Bothacking | -11 -10 -10 ------------ Run | Scr Mat Min Used RIF Installer . | . . . Robots Hacked 1 | . . 1 Non-combat . | . . . Combat 1 | . . 1 Robot Hacks Applied 1 | . . 1 parse_system 1 | . . 1 Relay Couplers Released . | . . . Fabnet Peak Effective % . | . . . Robots Rewired . | . . . Allies Hacked . | . . . Hacks Repelled . | . . . Allies | -11 -10 -10 -------- Run | Scr Mat Min Total Allies 1 | . . 1 Largest Group 1 | . . 1 Highest-Rated Group 31 | . . 31 Highest-Rated Ally 31 | . . 31 Total Orders . | . . . Ally Attacks 5 | . . 5 Total Damage 40 | . . 40 Kills . | . . . Allies Corrupted . | . . . Allies Melted . | . . . Intel | -11 -10 -10 ------- Run | Scr Mat Min Robot Analysis Total 1 | . 1 . Derelict Logs Recovered 2 | . . 2 Drone Launches . | . . . Drone Recoveries . | . . . Exploration | -11 -10 -10 ------------- Run | Scr Mat Min Turns Passed 3064 | 70 2204 790 Spaces Moved 1170 | 23 859 288 Core . | . . . Treads 1170 | 23 859 288 Legs . | . . . Wheels . | . . . Hover . | . . . Flight . | . . . Fastest Speed 160 | 160 160 240 Average Speed 214 | 160 207 240 Slowest Speed 240 | 160 240 240 Overloaded Moves . | . . . Propulsion Burnouts . | . . . Robots Hopped . | . . . Cave-ins Triggered . | . . . Exploration Rate (%) 52 | 3 91 64 Regions Visited 2 Branch Regions 1 Pre-discovered Areas 1 | . 1 . Known Exits Taken 1 | . 1 . Unknown Exits Taken 1 | 1 . . Scrap Searched 1 | . . 1 Spaces Dug 5 | . 5 . Terrain Destroyed 310 | . 295 15 Melee . | . . . Projectile . | . . . AOE 310 | . 295 15 Terrain Rammed . | . . . Walls Destroyed . | . . . Machines Disabled . | . . . Actions | -11 -10 -10 --------- Run | Scr Mat Min Total 1583 | 46 1190 347 Wait 251 | 10 222 19 Move 1168 | 22 858 288 Hop . | . . . Pick Up 23 | . 18 5 Fast Attach 5 | 1 4 . Attach 4 | . . 4 Detach 1 | . 1 . Swap 17 | 3 11 3 Drop 10 | 4 2 4 Fire 102 | 6 73 23 Melee 1 | . . 1 Ram . | . . . Kick . | . . . Crush 1 | . 1 . Escape Stasis . | . . . Rewire . | . . . Trap . | . . . Miscellaneous . | . . . Route ------- -11/Scrapyard -10/Materials (discovered 4 exits: [*Mat x3] / *Min) -10/Mines (discovered 3 exits: [*Mat x2] / [*Exi]) History --------- Turn | Location | Event 14 | -11/Scrapyard | Discovered new exit (range 3) 71 | -11/Scrapyard | Entered Materials 286 | -10/Materials | Central database locked down 300 | -10/Materials | Build established: Mutant 884 | -10/Materials | Discovered new exit (range 13) 1520 | -10/Materials | Repaired Grenade Launcher 1600 | -10/Materials | Discovered new exit (range 15) 1860 | -10/Materials | Discovered new exit (range 15) 1953 | -10/Materials | Identified exit to Mines 2275 | -10/Materials | Entered Mines 2373 | -10/Mines | Learned location of 1 exit from Materials 2387 | -10/Mines | Deemed a non-threat by the Exiles lab entrance 2387 | -10/Mines | Discovered new exit (range 5) 3028 | -10/Mines | Discovered new exit (range 5) 3031 | -10/Mines | Received a Mining Laser from a helpful Derelict 3036 | -10/Mines | Discovered new exit (range 11) 3051 | -10/Mines | Assembled infested the area 3053 | -10/Mines | Core integrity fell below 50% 3064 | -10/Mines | Core integrity fell below 20% 3065 | -10/Mines | Destroyed by D-53 Grenadier with Mini Grenade Launcher Last Messages --------------- 03036_ EXIT=FOUND 03051_ ALERT: Infestation in the mines, dispatching Demolisher response squad. 03051_ C-30 ARC bursts open, deploying its payload. 03051_ D-53 Grenadier unfolds itself. 03051_ Lgt. Treads destroyed. 03052_ Assault Rifle destroyed. 03054_ Plasma Injector explodes. 03054_ Lgt. Treads destroyed. 03056_ System corrupted: Energy discharge (-28). 03060_ F4-VGF(g) destroyed. 03061_ The unstable cave ceiling collapses. 03061_ Jacked D-53 Grenadier... >>parse_system Reading system data... New IDs: Mni. Grenade Launcher 03063_ Lgt. Ion Engine destroyed. 03064_ The unstable cave ceiling collapses. [Achievement: Collector] Map ----- +----------------------------------------------------+ | | | | | | | | | | | | | | | | | | | | | | | | | | | | | | | | | | | | | | | | | | | | | ???????????????????# #######???????????? | | ???????????????????# ; ;#???????????? | | ??????????????????## #???????????? | | ??????????????????# d @ ;#??????????? | | ??????????????????# d< a ???????? | | ??????????????????# ;#??????????? | | ???????????????#### ##??????????? | | ??????????????## ### < #???????????? | | ????????????### #### #???????????? | | ???????????## ##### #???????????? | | ???????????# #???##########???????????? | | ??????????## ##???????????????????????? | | ??????????# #???????????????????????? | | ??????????# #??????????????????????? | | ?###??????## ## ### #??????????????????????? | | ## #??????# #### ##??# #?????????????????????? | | # ??????# #??# #????# ????????????????????? | | # ??????# #??## ##?????# ???????????????????? | | ?# #?????# #???###???????# ???????????????????? | | ?# ##???# #??????????????? ???????????????????? | | ?# #???# #?#######???????????????????????????? | | ??# ##### ### ##??????????????????????????? | | ???# #??????????????????????????? | | ???# #??????????????????????????? | | ??# ####### ##?????????????????????????? | | ?# ##?????## ##????????????????????????? | | # ##???????### ##???????????????????????? | | # #???????????## #???????????????????????? | +----------------------------------------------------+ Best States ------------- Heat Dissipation 25 Energy Generation 10 Energy Capacity 125 Matter Stores 300 Matter Capacity 300 Sight Range 16 Terrain Scan Range 16 Terrain Scan Density 10 Armor Coverage 150 Evasion (%) 40 Recoil Reduction 2 Item Schematics ----------------- None Robot Schematics ------------------ None Fabricated ------------ Nothing Alien Tech Used ----------------- None Achievements -------------- Collector Challenges ------------ None Game ------ Seed RefineryBlastCalibrator Manual? 0 Play Time 00:14:38 Cumulative 315.7 hours Start 2022.04.28 @ 15:05:27 End 2022.04.28 @ 15:19:50 Sessions 1 Manual Loads 0 Difficulty Rogue Special Mode None Game No. 104 Rogue 104 Adventurer 0 Explorer 0 Win Type - Total 6 Types 3/1/0/0/2/0/0/0/0 Lore% 61 Gallery% 75 Achievement% 66 Wizard Run 0 Options --------- ASCII 0 Keyboard 0 Movement Arrows Keybinds 0 Fullscreen 0 Font 28/SmallcapsGlow Map View 72x54 Tactical HUD 1 Map Filters NONE Filters NONE Steam 1 RUN: c230b070-db2e-4492-a28b-5e01875526e6